[Event "Early-Titled-Tuesday-Blitz-March-19-2024"]
[Site "Chess.com"]
[Date "2024.03.19"]
[Round "6"]
[White "GoltsevDmitry2000"]
[Black "Kolle05"]
[Result "1-0"]
[WhiteElo "2767"]
[BlackElo "2575"]
[TimeControl "180+1"]
[EndTime "9:06:06 PDT"]
[Termination "GoltsevDmitry2000 won on time"]

1. e4 {[%clk 0:02:45.7]} 1... e5 {[%clk 0:02:56.8]} 2. Nf3 {[%clk 0:02:45.1]}
2... Nc6 {[%clk 0:02:54.6]} 3. Bb5 {[%clk 0:02:45]} 3... a6 {[%clk 0:02:54.4]}
4. Ba4 {[%clk 0:02:45.5]} 4... Bc5 {[%clk 0:02:53.1]} 5. O-O {[%clk 0:02:45.8]}
5... Nge7 {[%clk 0:02:52.6]} 6. c3 {[%clk 0:02:46.2]} 6... Ng6 {[%clk
0:02:51.7]} 7. d4 {[%clk 0:02:45.6]} 7... Ba7 {[%clk 0:02:51.7]} 8. Bg5 {[%clk
0:02:45.3]} 8... f6 {[%clk 0:02:51.8]} 9. Be3 {[%clk 0:02:45.6]} 9... O-O {[%clk
0:02:51.6]} 10. Bb3+ {[%clk 0:02:45.7]} 10... Kh8 {[%clk 0:02:51.4]} 11. Nbd2
{[%clk 0:02:46.1]} 11... d6 {[%clk 0:02:48.6]} 12. dxe5 {[%clk 0:02:45.3]} 12...
Bxe3 {[%clk 0:02:45]} 13. fxe3 {[%clk 0:02:41.1]} 13... Ncxe5 {[%clk 0:02:42.2]}
14. Nd4 {[%clk 0:02:40]} 14... Bg4 {[%clk 0:02:33.4]} 15. Qe1 {[%clk 0:02:38.2]}
15... c6 {[%clk 0:02:14.3]} 16. h3 {[%clk 0:02:19.8]} 16... Bd7 {[%clk
0:02:13.5]} 17. Qg3 {[%clk 0:02:18]} 17... b5 {[%clk 0:02:03.3]} 18. Nf5 {[%clk
0:02:13]} 18... Qc7 {[%clk 0:01:54.9]} 19. Nf3 {[%clk 0:02:11.4]} 19... Bxf5
{[%clk 0:01:45.3]} 20. exf5 {[%clk 0:02:10.9]} 20... Nxf3+ {[%clk 0:01:44.2]}
21. Rxf3 {[%clk 0:02:09.5]} 21... Ne5 {[%clk 0:01:43.6]} 22. Rf4 {[%clk
0:02:09.7]} 22... d5 {[%clk 0:01:43.5]} 23. e4 {[%clk 0:02:06.7]} 23... Nd3
{[%clk 0:01:37.9]} 24. Raf1 {[%clk 0:02:00.1]} 24... Nxf4 {[%clk 0:01:36.1]} 25.
Rxf4 {[%clk 0:02:01]} 25... Rae8 {[%clk 0:01:26.8]} 26. exd5 {[%clk 0:01:57.6]}
26... cxd5 {[%clk 0:01:01.9]} 27. Bxd5 {[%clk 0:01:49.4]} 27... Re1+ {[%clk
0:00:57.8]} 28. Kh2 {[%clk 0:01:47.9]} 28... Rfe8 {[%clk 0:00:51.2]} 29. Qh4
{[%clk 0:01:44.6]} 29... Rf1 {[%clk 0:00:43.2]} 30. g3 {[%clk 0:01:39.2]} 30...
Re2+ {[%clk 0:00:42.1]} 31. Bg2 {[%clk 0:01:39.3]} 31... Rxf4 {[%clk 0:00:25.5]}
32. gxf4 {[%clk 0:01:40.2]} 32... Qc6 {[%clk 0:00:23.5]} 33. Qg3 {[%clk
0:01:33]} 33... Rxb2 {[%clk 0:00:22.6]} 34. Kh1 {[%clk 0:01:33.4]} 34... Qd6
{[%clk 0:00:21.6]} 35. Qe3 {[%clk 0:01:30.3]} 35... Qd7 {[%clk 0:00:17.7]} 36.
Qe6 {[%clk 0:01:27.2]} 36... Rd2 {[%clk 0:00:08.3]} 37. Bc6 {[%clk 0:01:21.6]}
1-0

[Event "Early-Titled-Tuesday-Blitz-March-19-2024"]
[Site "Chess.com"]
[Date "2024.03.19"]
[Round "6"]
[White "Misterfox120"]
[Black "FARIZA2018"]
[Result "0-1"]
[WhiteElo "2418"]
[BlackElo "2565"]
[TimeControl "180+1"]
[EndTime "9:06:06 PDT"]
[Termination "FARIZA2018 won by resignation"]

1. d4 {[%clk 0:02:51.3]} 1... Nf6 {[%clk 0:03:00.2]} 2. Bf4 {[%clk 0:02:51.1]}
2... d5 {[%clk 0:03:00.5]} 3. e3 {[%clk 0:02:50.9]} 3... c5 {[%clk 0:03:00.6]}
4. Nf3 {[%clk 0:02:51.6]} 4... Nc6 {[%clk 0:03:01]} 5. Nbd2 {[%clk 0:02:51.8]}
5... e6 {[%clk 0:02:59.5]} 6. c3 {[%clk 0:02:50.7]} 6... Bd6 {[%clk 0:02:59.4]}
7. Bg3 {[%clk 0:02:49]} 7... O-O {[%clk 0:02:58.8]} 8. Bd3 {[%clk 0:02:47.8]}
8... b6 {[%clk 0:02:54.3]} 9. Qe2 {[%clk 0:02:47.2]} 9... Bb7 {[%clk 0:02:52.9]}
10. Rd1 {[%clk 0:02:47.3]} 10... Qc7 {[%clk 0:02:52.6]} 11. Bxd6 {[%clk
0:02:37.2]} 11... Qxd6 {[%clk 0:02:52.8]} 12. e4 {[%clk 0:02:37.8]} 12... dxe4
{[%clk 0:02:46.3]} 13. Nxe4 {[%clk 0:02:36.2]} 13... Nxe4 {[%clk 0:02:27.6]} 14.
Qxe4 {[%clk 0:02:18.2]} 14... f5 {[%clk 0:02:27.2]} 15. Qh4 {[%clk 0:02:06.5]}
15... cxd4 {[%clk 0:02:26.8]} 16. O-O {[%clk 0:01:49.6]} 16... Qd8 {[%clk
0:02:01.6]} 17. Qf4 {[%clk 0:01:32.3]} 17... Qf6 {[%clk 0:01:57.5]} 18. cxd4
{[%clk 0:01:26.5]} 18... Nb4 {[%clk 0:01:55]} 19. Bc4 {[%clk 0:01:23.4]} 19...
Nd5 {[%clk 0:01:50.7]} 20. Qe5 {[%clk 0:01:23.1]} 20... Rac8 {[%clk 0:01:49]}
21. Bb3 {[%clk 0:01:18.4]} 21... Rfd8 {[%clk 0:01:34.3]} 22. Rfe1 {[%clk
0:01:13.6]} 22... Qxe5 {[%clk 0:01:33.7]} 23. Rxe5 {[%clk 0:01:06.2]} 23... Rd6
{[%clk 0:01:20.1]} 24. Rde1 {[%clk 0:00:58.6]} 24... Nf4 {[%clk 0:01:09.8]} 25.
Rxe6 {[%clk 0:00:24.3]} 25... Nxe6 {[%clk 0:00:55.9]} 26. Rxe6 {[%clk
0:00:22.1]} 26... Bd5 {[%clk 0:00:39.5]} 27. Rxd6 {[%clk 0:00:20.9]} 27... Rc1+
{[%clk 0:00:39.4]} 0-1

[Event "Early-Titled-Tuesday-Blitz-March-19-2024"]
[Site "Chess.com"]
[Date "2024.03.19"]
[Round "6"]
[White "PeshkaCh"]
[Black "AnishOnYoutube"]
[Result "0-1"]
[WhiteElo "2841"]
[BlackElo "3034"]
[TimeControl "180+1"]
[EndTime "9:06:09 PDT"]
[Termination "AnishOnYoutube won by checkmate"]

1. Nf3 {[%clk 0:03:00.9]} 1... Nf6 {[%clk 0:02:59.5]} 2. d4 {[%clk 0:03:01.1]}
2... d5 {[%clk 0:02:59.4]} 3. c4 {[%clk 0:03:01.4]} 3... e6 {[%clk 0:02:59.6]}
4. Nc3 {[%clk 0:03:01.4]} 4... c6 {[%clk 0:02:58.9]} 5. cxd5 {[%clk 0:02:59.8]}
5... exd5 {[%clk 0:02:59.1]} 6. Bg5 {[%clk 0:03:00.5]} 6... Be7 {[%clk
0:02:59.4]} 7. e3 {[%clk 0:03:01]} 7... Bf5 {[%clk 0:02:59.5]} 8. Bd3 {[%clk
0:03:01.4]} 8... Bxd3 {[%clk 0:02:59.7]} 9. Qxd3 {[%clk 0:03:02.3]} 9... Nbd7
{[%clk 0:03:00.2]} 10. O-O {[%clk 0:03:02.8]} 10... O-O {[%clk 0:03:00.2]} 11.
Rab1 {[%clk 0:03:03.4]} 11... a5 {[%clk 0:02:59.5]} 12. a3 {[%clk 0:03:03.7]}
12... a4 {[%clk 0:02:52.5]} 13. Rfe1 {[%clk 0:02:59.9]} 13... Re8 {[%clk
0:02:51.8]} 14. Bxf6 {[%clk 0:02:58.4]} 14... Nxf6 {[%clk 0:02:45.6]} 15. e4
{[%clk 0:02:58.8]} 15... dxe4 {[%clk 0:02:44]} 16. Nxe4 {[%clk 0:02:59.7]} 16...
Nxe4 {[%clk 0:02:35.9]} 17. Rxe4 {[%clk 0:03:00.6]} 17... Bf6 {[%clk 0:02:34.5]}
18. Rbe1 {[%clk 0:02:53]} 18... Qd7 {[%clk 0:02:32.7]} 19. Rxe8+ {[%clk
0:02:35.6]} 19... Rxe8 {[%clk 0:02:30.7]} 20. Rxe8+ {[%clk 0:02:36.5]} 20...
Qxe8 {[%clk 0:02:30.3]} 21. Qc2 {[%clk 0:02:35.2]} 21... Bxd4 {[%clk 0:02:19.5]}
22. Qxa4 {[%clk 0:02:23.4]} 22... Bxb2 {[%clk 0:02:18.2]} 23. Qb3 {[%clk
0:02:06.9]} 23... Qd7 {[%clk 0:01:52.6]} 24. a4 {[%clk 0:01:44.4]} 24... Bf6
{[%clk 0:01:46.3]} 25. h3 {[%clk 0:01:40.6]} 25... g6 {[%clk 0:01:44.9]} 26. a5
{[%clk 0:01:40]} 26... Bd8 {[%clk 0:01:35.7]} 27. Qa4 {[%clk 0:01:31.1]} 27...
Qd5 {[%clk 0:01:26.6]} 28. a6 {[%clk 0:01:29.1]} 28... bxa6 {[%clk 0:01:26.9]}
29. Qxa6 {[%clk 0:01:30]} 29... Qd1+ {[%clk 0:01:25.9]} 30. Kh2 {[%clk
0:01:29.7]} 30... Bc7+ {[%clk 0:01:25.7]} 31. g3 {[%clk 0:01:30.1]} 31... Qxf3
{[%clk 0:01:24.4]} 32. Qc8+ {[%clk 0:01:30.7]} 32... Kg7 {[%clk 0:01:25]} 33.
Qxc7 {[%clk 0:01:31.4]} 33... Qxf2+ {[%clk 0:01:25.5]} 34. Kh1 {[%clk 0:01:32]}
34... Qf3+ {[%clk 0:01:21.7]} 35. Kh2 {[%clk 0:01:32.2]} 35... Qe2+ {[%clk
0:01:22]} 36. Kh1 {[%clk 0:01:30.9]} 36... Qd1+ {[%clk 0:01:22.2]} 37. Kh2
{[%clk 0:01:31.2]} 37... Qd2+ {[%clk 0:01:22.7]} 38. Kh1 {[%clk 0:01:31.7]}
38... Qd5+ {[%clk 0:01:23]} 39. Kh2 {[%clk 0:01:32]} 39... c5 {[%clk 0:01:21.4]}
40. Qa5 {[%clk 0:01:30.6]} 40... Qd4 {[%clk 0:01:18.3]} 41. h4 {[%clk 0:01:31]}
41... h6 {[%clk 0:01:16.4]} 42. h5 {[%clk 0:01:31.1]} 42... Qf2+ {[%clk
0:01:06.9]} 43. Kh1 {[%clk 0:01:30.6]} 43... Qf3+ {[%clk 0:01:04.2]} 44. Kg1
{[%clk 0:01:30.8]} 44... Qxg3+ {[%clk 0:01:01.5]} 45. Kh1 {[%clk 0:01:30.5]}
45... Qf3+ {[%clk 0:01:01.6]} 46. Kg1 {[%clk 0:01:30.5]} 46... Qg4+ {[%clk
0:01:01.9]} 47. Kh2 {[%clk 0:01:29.4]} 47... Qxh5+ {[%clk 0:01:02]} 48. Kg1
{[%clk 0:01:30.3]} 48... Qg5+ {[%clk 0:01:01.8]} 49. Kh1 {[%clk 0:01:30.5]}
49... Qe5 {[%clk 0:01:01.2]} 50. Qa3 {[%clk 0:01:19.5]} 50... c4 {[%clk
0:00:59.3]} 51. Qg3 {[%clk 0:01:19.3]} 51... Qd4 {[%clk 0:00:53.2]} 52. Qf2
{[%clk 0:01:17.4]} 52... Qa1+ {[%clk 0:00:53.3]} 53. Kh2 {[%clk 0:01:16.6]}
53... Qe5+ {[%clk 0:00:53.7]} 54. Qg3 {[%clk 0:01:15.3]} 54... Qxg3+ {[%clk
0:00:45]} 55. Kh1 {[%clk 0:01:16.2]} 55... Qg4 {[%clk 0:00:42]} 56. Kh2 {[%clk
0:01:16.6]} 56... Kf6 {[%clk 0:00:41.4]} 57. Kh1 {[%clk 0:01:17.5]} 57... Kf5
{[%clk 0:00:42.3]} 58. Kh2 {[%clk 0:01:18.4]} 58... Kf4 {[%clk 0:00:43.2]} 59.
Kh1 {[%clk 0:01:19.3]} 59... Kf3 {[%clk 0:00:44.1]} 60. Kh2 {[%clk 0:01:20.2]}
60... Qg2# {[%clk 0:00:45]} 0-1

[Event "Early-Titled-Tuesday-Blitz-March-19-2024"]
[Site "Chess.com"]
[Date "2024.03.19"]
[Round "6"]
[White "TERMINATOR_PC"]
[Black "SAInt_666"]
[Result "1-0"]
[WhiteElo "2577"]
[BlackElo "2735"]
[TimeControl "180+1"]
[EndTime "9:06:13 PDT"]
[Termination "TERMINATOR_PC won by checkmate"]

1. e4 {[%clk 0:01:56.7]} 1... c5 {[%clk 0:02:57.4]} 2. Nf3 {[%clk 0:01:54.3]}
2... d6 {[%clk 0:02:57.8]} 3. d4 {[%clk 0:01:51.8]} 3... cxd4 {[%clk 0:02:58.7]}
4. Nxd4 {[%clk 0:01:52.6]} 4... Nf6 {[%clk 0:02:59.3]} 5. Nc3 {[%clk 0:01:50.6]}
5... Nc6 {[%clk 0:02:59.7]} 6. Bg5 {[%clk 0:01:42]} 6... e6 {[%clk 0:02:59.7]}
7. Qd3 {[%clk 0:01:39.7]} 7... Bd7 {[%clk 0:02:59.5]} 8. O-O-O {[%clk
0:01:39.9]} 8... a6 {[%clk 0:02:59.2]} 9. Kb1 {[%clk 0:01:40.2]} 9... Be7 {[%clk
0:02:58]} 10. f4 {[%clk 0:01:40.7]} 10... b5 {[%clk 0:02:52]} 11. Bxf6 {[%clk
0:01:29.9]} 11... gxf6 {[%clk 0:02:41.8]} 12. Qg3 {[%clk 0:01:19.6]} 12... Bf8
{[%clk 0:02:33.7]} 13. Nxc6 {[%clk 0:01:18.9]} 13... Bxc6 {[%clk 0:02:33]} 14.
Bd3 {[%clk 0:01:19.6]} 14... b4 {[%clk 0:02:25.4]} 15. Ne2 {[%clk 0:01:15.2]}
15... Qb6 {[%clk 0:02:21.8]} 16. Rhe1 {[%clk 0:01:09.5]} 16... h5 {[%clk
0:02:12.1]} 17. h4 {[%clk 0:01:08.6]} 17... Qc5 {[%clk 0:02:06]} 18. Ng1 {[%clk
0:01:02.6]} 18... a5 {[%clk 0:02:04.8]} 19. Nf3 {[%clk 0:00:47.6]} 19... a4
{[%clk 0:02:04.1]} 20. e5 {[%clk 0:00:32.8]} 20... dxe5 {[%clk 0:01:52.8]} 21.
fxe5 {[%clk 0:00:31.6]} 21... f5 {[%clk 0:01:53.1]} 22. Qf4 {[%clk 0:00:26.8]}
22... a3 {[%clk 0:01:52.1]} 23. Bxf5 {[%clk 0:00:23.7]} 23... exf5 {[%clk
0:01:44.2]} 24. e6 {[%clk 0:00:02.8]} 24... f6 {[%clk 0:01:44.4]} 25. e7 {[%clk
0:00:02.8]} 25... Bh6 {[%clk 0:01:37.5]} 26. Qc7 {[%clk 0:00:03.1]} 26... b3
{[%clk 0:00:47]} 27. Rd8+ {[%clk 0:00:03.4]} 27... Kf7 {[%clk 0:00:47.6]} 28.
e8=Q# {[%clk 0:00:04]} 1-0

[Event "Early-Titled-Tuesday-Blitz-March-19-2024"]
[Site "Chess.com"]
[Date "2024.03.19"]
[Round "6"]
[White "GMKrikor"]
[Black "LornerAcosta"]
[Result "1-0"]
[WhiteElo "2894"]
[BlackElo "2607"]
[TimeControl "180+1"]
[EndTime "9:06:16 PDT"]
[Termination "GMKrikor won by resignation"]

1. Nf3 {[%clk 0:03:00.9]} 1... d5 {[%clk 0:02:59.8]} 2. c4 {[%clk 0:03:00.9]}
2... e6 {[%clk 0:02:59.8]} 3. d4 {[%clk 0:03:00.5]} 3... Nf6 {[%clk 0:03:00]} 4.
Nc3 {[%clk 0:03:00.5]} 4... Be7 {[%clk 0:03:00]} 5. cxd5 {[%clk 0:03:00.4]} 5...
exd5 {[%clk 0:03:00.1]} 6. Bf4 {[%clk 0:03:01]} 6... c6 {[%clk 0:02:58.5]} 7. h3
{[%clk 0:03:01.1]} 7... h6 {[%clk 0:02:47.1]} 8. e3 {[%clk 0:02:56.2]} 8... Bf5
{[%clk 0:02:46.1]} 9. Bd3 {[%clk 0:02:49.1]} 9... Bxd3 {[%clk 0:02:44.9]} 10.
Qxd3 {[%clk 0:02:50]} 10... Nbd7 {[%clk 0:02:43.2]} 11. g4 {[%clk 0:02:45.8]}
11... Nf8 {[%clk 0:02:39.5]} 12. a3 {[%clk 0:02:39.7]} 12... Ne6 {[%clk
0:02:22.2]} 13. Bg3 {[%clk 0:02:40]} 13... Bd6 {[%clk 0:02:20.8]} 14. Ne5 {[%clk
0:02:40.1]} 14... Bxe5 {[%clk 0:02:18.2]} 15. Bxe5 {[%clk 0:02:32.8]} 15... Qe7
{[%clk 0:02:10.5]} 16. O-O-O {[%clk 0:02:29.7]} 16... O-O-O {[%clk 0:01:45]} 17.
Kb1 {[%clk 0:02:25.4]} 17... Nf8 {[%clk 0:01:35.3]} 18. Rc1 {[%clk 0:02:12.3]}
18... Kd7 {[%clk 0:01:06.7]} 19. f3 {[%clk 0:01:50.3]} 19... Ng6 {[%clk
0:01:01.2]} 20. Bg3 {[%clk 0:01:50]} 20... Ke8 {[%clk 0:00:44.1]} 21. Rhe1
{[%clk 0:01:49.5]} 21... Kf8 {[%clk 0:00:44.2]} 22. h4 {[%clk 0:01:46.9]} 22...
Kg8 {[%clk 0:00:43.3]} 23. h5 {[%clk 0:01:47]} 23... Nf8 {[%clk 0:00:43.1]} 24.
Bh4 {[%clk 0:01:41.4]} 24... g5 {[%clk 0:00:29.9]} 25. hxg6 {[%clk 0:01:38.6]}
25... Nxg6 {[%clk 0:00:29.3]} 26. Bg3 {[%clk 0:01:37.4]} 26... Kg7 {[%clk
0:00:27.5]} 27. Rh1 {[%clk 0:01:36.3]} 27... h5 {[%clk 0:00:22.5]} 28. g5 {[%clk
0:01:36.2]} 28... Ne8 {[%clk 0:00:16.4]} 29. f4 {[%clk 0:01:36.7]} 29... Nf8
{[%clk 0:00:12.9]} 30. f5 {[%clk 0:01:34.4]} 30... Kg8 {[%clk 0:00:11.2]} 31.
Rcg1 {[%clk 0:01:30.8]} 31... Nd6 {[%clk 0:00:10.9]} 32. Be5 {[%clk 0:01:28.8]}
32... Rh7 {[%clk 0:00:09]} 33. f6 {[%clk 0:01:17.3]} 33... Qd7 {[%clk
0:00:07.5]} 34. g6 {[%clk 0:01:10.9]} 34... fxg6 {[%clk 0:00:06.3]} 35. Rxg6+
{[%clk 0:01:11.8]} 35... Nxg6 {[%clk 0:00:04.1]} 36. Qxg6+ {[%clk 0:01:12.7]}
36... Kf8 {[%clk 0:00:04.5]} 37. Bxd6+ {[%clk 0:01:09.6]} 37... Qxd6 {[%clk
0:00:03.8]} 38. Qxh7 {[%clk 0:01:10]} 38... Qxf6 {[%clk 0:00:04.3]} 39. Qxh5
{[%clk 0:01:04.4]} 1-0

[Event "Early-Titled-Tuesday-Blitz-March-19-2024"]
[Site "Chess.com"]
[Date "2024.03.19"]
[Round "6"]
[White "Zohid6"]
[Black "tetrix83"]
[Result "1-0"]
[WhiteElo "2869"]
[BlackElo "2603"]
[TimeControl "180+1"]
[EndTime "9:06:22 PDT"]
[Termination "Zohid6 won by checkmate"]

1. e4 {[%clk 0:03:00.9]} 1... c5 {[%clk 0:02:56.8]} 2. Nf3 {[%clk 0:03:00.9]}
2... e6 {[%clk 0:02:56.7]} 3. c3 {[%clk 0:03:00.7]} 3... Nf6 {[%clk 0:02:54.8]}
4. d3 {[%clk 0:02:51.7]} 4... Nc6 {[%clk 0:02:50.1]} 5. g3 {[%clk 0:02:49.4]}
5... d5 {[%clk 0:02:49.8]} 6. e5 {[%clk 0:02:49.6]} 6... Nd7 {[%clk 0:02:46.1]}
7. d4 {[%clk 0:02:50]} 7... b6 {[%clk 0:02:25.2]} 8. Nbd2 {[%clk 0:02:42.1]}
8... Be7 {[%clk 0:02:23.2]} 9. h4 {[%clk 0:02:37.7]} 9... O-O {[%clk 0:02:18.8]}
10. Bd3 {[%clk 0:02:37]} 10... cxd4 {[%clk 0:02:17]} 11. Bxh7+ {[%clk
0:02:00.9]} 11... Kxh7 {[%clk 0:01:56.3]} 12. Ng5+ {[%clk 0:02:01]} 12... Kg6
{[%clk 0:01:41.9]} 13. h5+ {[%clk 0:01:37.3]} 13... Kh6 {[%clk 0:01:08.9]} 14.
Ndf3 {[%clk 0:01:35.1]} 14... Ndxe5 {[%clk 0:00:46]} 15. Nxe5 {[%clk 0:00:38.6]}
15... Bxg5 {[%clk 0:00:41.8]} 16. Nxc6 {[%clk 0:00:38.7]} 16... Qd6 {[%clk
0:00:15.1]} 17. Bxg5+ {[%clk 0:00:31.3]} 17... Kxg5 {[%clk 0:00:15.3]} 18. h6
{[%clk 0:00:26]} 18... g6 {[%clk 0:00:13.2]} 19. Qxd4 {[%clk 0:00:23.6]} 19...
e5 {[%clk 0:00:06.1]} 20. Nxe5 {[%clk 0:00:22.1]} 20... Re8 {[%clk 0:00:02]} 21.
Qf4# {[%clk 0:00:21.7]} 1-0

[Event "Early-Titled-Tuesday-Blitz-March-19-2024"]
[Site "Chess.com"]
[Date "2024.03.19"]
[Round "6"]
[White "arnash_bauyrzhan"]
[Black "Matrix3x3a"]
[Result "0-1"]
[WhiteElo "2365"]
[BlackElo "2635"]
[TimeControl "180+1"]
[EndTime "9:06:22 PDT"]
[Termination "Matrix3x3a won on time"]

1. e4 {[%clk 0:03:00.9]} 1... c5 {[%clk 0:02:58.7]} 2. Nf3 {[%clk 0:03:00.5]}
2... d6 {[%clk 0:02:58.4]} 3. Bb5+ {[%clk 0:03:00.1]} 3... Nd7 {[%clk 0:02:58]}
4. d4 {[%clk 0:02:59.7]} 4... cxd4 {[%clk 0:02:57.2]} 5. Qxd4 {[%clk 0:03:00.3]}
5... a6 {[%clk 0:02:56.6]} 6. Bxd7+ {[%clk 0:03:00.4]} 6... Qxd7 {[%clk
0:02:56.4]} 7. O-O {[%clk 0:02:59.8]} 7... e5 {[%clk 0:02:48.1]} 8. Qd3 {[%clk
0:02:59.3]} 8... Qc6 {[%clk 0:02:46.5]} 9. c4 {[%clk 0:02:57]} 9... Be6 {[%clk
0:02:46.2]} 10. b3 {[%clk 0:02:56.4]} 10... b5 {[%clk 0:02:43.5]} 11. Na3 {[%clk
0:02:56.5]} 11... Nf6 {[%clk 0:02:39.7]} 12. cxb5 {[%clk 0:02:46.7]} 12... Qxe4
{[%clk 0:02:38.6]} 13. Qxe4 {[%clk 0:02:36.7]} 13... Nxe4 {[%clk 0:02:39.5]} 14.
bxa6 {[%clk 0:02:32.3]} 14... Rxa6 {[%clk 0:02:40.4]} 15. Nb5 {[%clk 0:02:29.7]}
15... Kd7 {[%clk 0:02:37.1]} 16. Be3 {[%clk 0:02:17.8]} 16... f5 {[%clk
0:02:31.3]} 17. Rfc1 {[%clk 0:02:13.6]} 17... Rc6 {[%clk 0:02:25.5]} 18. Na7
{[%clk 0:01:56.4]} 18... Rxc1+ {[%clk 0:02:22.5]} 19. Rxc1 {[%clk 0:01:56.2]}
19... Be7 {[%clk 0:02:22.8]} 20. Bb6 {[%clk 0:01:31.3]} 20... Bd8 {[%clk
0:02:06.5]} 21. Nc8 {[%clk 0:00:49.3]} 21... g5 {[%clk 0:02:04.8]} 22. Bxd8
{[%clk 0:00:42.6]} 22... Rxd8 {[%clk 0:01:54.5]} 23. Nb6+ {[%clk 0:00:41.9]}
23... Ke7 {[%clk 0:01:47.6]} 24. Rc7+ {[%clk 0:00:38.7]} 24... Kf6 {[%clk
0:01:47.2]} 25. Rxh7 {[%clk 0:00:26.2]} 25... Rb8 {[%clk 0:01:46.1]} 26. Nd7+
{[%clk 0:00:21.5]} 26... Bxd7 {[%clk 0:01:46.1]} 27. Rxd7 {[%clk 0:00:21.8]}
27... Ke6 {[%clk 0:01:40.3]} 28. Rc7 {[%clk 0:00:21.2]} 28... g4 {[%clk
0:01:40.1]} 29. Ne1 {[%clk 0:00:19.9]} 29... Nc5 {[%clk 0:01:37.4]} 30. Kf1
{[%clk 0:00:17.5]} 30... Ra8 {[%clk 0:01:34.9]} 31. a4 {[%clk 0:00:11.5]} 31...
Nxb3 {[%clk 0:01:32]} 32. Rc4 {[%clk 0:00:11.8]} 32... Nc5 {[%clk 0:01:28.8]}
33. Ke2 {[%clk 0:00:09.9]} 33... Nxa4 {[%clk 0:01:21.3]} 34. Nd3 {[%clk
0:00:05.6]} 34... Nb6 {[%clk 0:01:13.3]} 35. Rc2 {[%clk 0:00:03.3]} 35... Nd5
{[%clk 0:01:11.9]} 36. f3 {[%clk 0:00:02.5]} 36... Rh8 {[%clk 0:01:08.2]} 37.
fxg4 {[%clk 0:00:01.9]} 37... fxg4 {[%clk 0:01:08]} 0-1

[Event "Early-Titled-Tuesday-Blitz-March-19-2024"]
[Site "Chess.com"]
[Date "2024.03.19"]
[Round "6"]
[White "TigrVShlyape"]
[Black "nikitakhoroshev"]
[Result "1-0"]
[WhiteElo "2907"]
[BlackElo "2690"]
[TimeControl "180+1"]
[EndTime "9:06:24 PDT"]
[Termination "TigrVShlyape won by resignation"]

1. e4 {[%clk 0:02:14.5]} 1... e5 {[%clk 0:02:55.5]} 2. Nf3 {[%clk 0:02:14.3]}
2... Nc6 {[%clk 0:02:55]} 3. Bb5 {[%clk 0:02:14.4]} 3... a6 {[%clk 0:02:54.5]}
4. Ba4 {[%clk 0:02:12.7]} 4... Nf6 {[%clk 0:02:53.8]} 5. O-O {[%clk 0:02:12.5]}
5... b5 {[%clk 0:02:53.2]} 6. Bb3 {[%clk 0:02:12.3]} 6... Bb7 {[%clk 0:02:53.3]}
7. c3 {[%clk 0:02:07.5]} 7... Nxe4 {[%clk 0:02:42.7]} 8. Re1 {[%clk 0:02:06.1]}
8... Nc5 {[%clk 0:02:40.3]} 9. Bc2 {[%clk 0:02:04.2]} 9... Ne6 {[%clk
0:02:37.3]} 10. Nxe5 {[%clk 0:01:59.8]} 10... Nxe5 {[%clk 0:02:36.7]} 11. Rxe5
{[%clk 0:01:59.8]} 11... Bd6 {[%clk 0:02:36.6]} 12. Re1 {[%clk 0:01:54.1]} 12...
Qh4 {[%clk 0:02:35.4]} 13. g3 {[%clk 0:01:50.8]} 13... Qh3 {[%clk 0:02:35.4]}
14. Be4 {[%clk 0:01:49.9]} 14... Bxe4 {[%clk 0:02:31]} 15. Rxe4 {[%clk
0:01:43.6]} 15... h5 {[%clk 0:02:30.7]} 16. Qf3 {[%clk 0:01:31.1]} 16... Rd8
{[%clk 0:02:15.8]} 17. Rh4 {[%clk 0:01:26.7]} 17... Ng5 {[%clk 0:02:12.3]} 18.
Qe3+ {[%clk 0:01:14.2]} 18... Qe6 {[%clk 0:02:04.8]} 19. Qxg5 {[%clk 0:01:13.8]}
19... Qe1+ {[%clk 0:02:04.4]} 20. Kg2 {[%clk 0:01:14.1]} 20... Be7 {[%clk
0:02:04.5]} 21. Qe3 {[%clk 0:01:11.6]} 21... Qxe3 {[%clk 0:01:58.6]} 22. dxe3
{[%clk 0:01:09.5]} 22... Bxh4 {[%clk 0:01:57.1]} 23. gxh4 {[%clk 0:01:09.9]}
23... d5 {[%clk 0:01:38.8]} 24. Nd2 {[%clk 0:01:07.4]} 24... Rh6 {[%clk
0:01:37.5]} 25. Nf3 {[%clk 0:01:04.5]} 25... Rg6+ {[%clk 0:01:37.3]} 26. Kf1
{[%clk 0:01:04.6]} 26... c5 {[%clk 0:01:33.7]} 27. Bd2 {[%clk 0:01:02.4]} 27...
Rc6 {[%clk 0:01:33.5]} 28. Ke2 {[%clk 0:01:01.4]} 28... f6 {[%clk 0:01:33.8]}
29. a4 {[%clk 0:00:59.4]} 29... Kf7 {[%clk 0:01:30.1]} 30. axb5 {[%clk
0:00:59.2]} 30... axb5 {[%clk 0:01:30.4]} 31. b4 {[%clk 0:00:59.6]} 31... cxb4
{[%clk 0:01:26.4]} 32. cxb4 {[%clk 0:00:59.1]} 32... Rdd6 {[%clk 0:01:21]} 33.
Ra5 {[%clk 0:00:57.9]} 33... Ra6 {[%clk 0:01:00.2]} 34. Rxb5 {[%clk 0:00:57.4]}
34... Ra2 {[%clk 0:01:00.3]} 35. Rb7+ {[%clk 0:00:56.4]} 35... Ke6 {[%clk
0:01:00.2]} 36. b5 {[%clk 0:00:56.5]} 36... g6 {[%clk 0:00:59]} 37. Rg7 {[%clk
0:00:54]} 37... Rb6 {[%clk 0:00:51.8]} 38. Nd4+ {[%clk 0:00:53.4]} 38... Ke5
{[%clk 0:00:49.6]} 39. f4+ {[%clk 0:00:48]} 39... Kd6 {[%clk 0:00:44.5]} 40. Kd3
{[%clk 0:00:48.3]} 40... Ra3+ {[%clk 0:00:43.8]} 41. Bc3 {[%clk 0:00:45.2]}
41... Rb8 {[%clk 0:00:41.6]} 42. Kd2 {[%clk 0:00:40]} 42... Rc8 {[%clk
0:00:41.4]} 43. Bb4+ {[%clk 0:00:39.9]} 1-0